[Event "Sempre più Rapidamente"]
[Site "Chess.com"]
[Date "2020.04.12"]
[Round "1"]
[White "crippo"]
[Black "ferrariand"]
[Result "1-0"]
[WhiteElo "1674"]
[BlackElo "1594"]
[TimeControl "720+3"]
[EndTime "6:02:49 PDT"]
[Termination "crippo ha vinto per scaccomatto"]

1. e4 {[%clk 0:12:01.8]} 1... e5 {[%clk 0:12:01.2]} 2. Bc4 {[%clk 0:12:01.5]}
2... Nf6 {[%clk 0:11:56.8]} 3. d3 {[%clk 0:12:02]} 3... d5 {[%clk 0:11:49.7]} 4.
exd5 {[%clk 0:11:56.2]} 4... Nxd5 {[%clk 0:11:47.9]} 5. Nf3 {[%clk 0:11:54.7]}
5... Bg4 {[%clk 0:11:37.3]} 6. Nc3 {[%clk 0:11:46.6]} 6... Bb4 {[%clk
0:11:14.3]} 7. O-O {[%clk 0:11:44.5]} 7... Nxc3 {[%clk 0:11:10.5]} 8. bxc3
{[%clk 0:11:45.5]} 8... Bxc3 {[%clk 0:11:11.7]} 9. Ba3 {[%clk 0:11:23.6]} 9...
Bxa1 {[%clk 0:10:56.6]} 10. Qxa1 {[%clk 0:11:23]} 10... Bxf3 {[%clk 0:10:57.8]}
11. Qxe5+ {[%clk 0:11:23.4]} 11... Kd7 {[%clk 0:10:42.9]} 12. Qf5+ {[%clk
0:11:19.2]} 12... Ke8 {[%clk 0:09:53.7]} 13. Re1+ {[%clk 0:11:18.4]} 13... Qe7
{[%clk 0:09:38]} 14. Qxf7+ {[%clk 0:11:16.5]} 14... Kd8 {[%clk 0:09:04.4]} 15.
Qxe7+ {[%clk 0:11:16.9]} 15... Kc8 {[%clk 0:09:01.4]} 16. Be6+ {[%clk
0:11:17.5]} 16... Nd7 {[%clk 0:08:52.6]} 17. Bxd7+ {[%clk 0:11:18.8]} 17... Kb8
{[%clk 0:08:52.9]} 18. Qe8+ {[%clk 0:11:19.8]} 18... Rxe8 {[%clk 0:08:46.9]} 19.
Rxe8# {[%clk 0:11:21.9]} 1-0

[Event "Sempre più Rapidamente"]
[Site "Chess.com"]
[Date "2020.04.12"]
[Round "1"]
[White "mr6701"]
[Black "Delsoldato03"]
[Result "1-0"]
[WhiteElo "1491"]
[BlackElo "1110"]
[TimeControl "720+3"]
[EndTime "6:04:23 PDT"]
[Termination "mr6701 ha vinto per abbandono"]

1. e4 {[%clk 0:12:02.9]} 1... e5 {[%clk 0:12:00.2]} 2. d4 {[%clk 0:12:04.6]}
2... exd4 {[%clk 0:11:58.4]} 3. c3 {[%clk 0:12:06.8]} 3... dxc3 {[%clk
0:11:59.4]} 4. Bc4 {[%clk 0:12:08.8]} 4... c2 {[%clk 0:11:57.4]} 5. Qxc2 {[%clk
0:12:09.6]} 5... Bb4+ {[%clk 0:11:58.8]} 6. Nc3 {[%clk 0:12:10.6]} 6... d6
{[%clk 0:11:40.5]} 7. Bxf7+ {[%clk 0:12:09.9]} 7... Kxf7 {[%clk 0:11:35.2]} 8.
Qb3+ {[%clk 0:12:11.8]} 8... Be6 {[%clk 0:11:28.7]} 9. Qxb4 {[%clk 0:12:14.7]}
9... b6 {[%clk 0:11:20.6]} 10. Nf3 {[%clk 0:12:14.8]} 10... Nc6 {[%clk
0:11:21.9]} 11. Qb5 {[%clk 0:12:12.5]} 11... Qd7 {[%clk 0:11:16.2]} 12. Ng5+
{[%clk 0:12:11.3]} 12... Kf6 {[%clk 0:11:02.1]} 13. O-O {[%clk 0:11:49.9]} 13...
Ne5 {[%clk 0:10:54.8]} 14. Qe2 {[%clk 0:11:34]} 14... Bc4 {[%clk 0:10:39.4]} 15.
Qe3 {[%clk 0:11:25.3]} 15... Qg4 {[%clk 0:10:18.1]} 16. h3 {[%clk 0:11:09]}
16... Qh4 {[%clk 0:09:40.6]} 17. g3 {[%clk 0:11:03.1]} 17... Qh5 {[%clk
0:09:32.3]} 18. Nd5+ {[%clk 0:10:51.5]} 18... Bxd5 {[%clk 0:09:19.9]} 19. exd5
{[%clk 0:10:54.4]} 19... Ke7 {[%clk 0:09:14.9]} 20. f4 {[%clk 0:10:52.3]} 20...
h6 {[%clk 0:08:57.3]} 21. Ne6 {[%clk 0:10:44.4]} 21... Nf7 {[%clk 0:08:28.6]}
22. Nxg7+ {[%clk 0:10:42.4]} 1-0

[Event "Sempre più Rapidamente"]
[Site "Chess.com"]
[Date "2020.04.12"]
[Round "1"]
[White "Ollarov"]
[Black "sirmale49"]
[Result "1-0"]
[WhiteElo "1969"]
[BlackElo "1410"]
[TimeControl "720+3"]
[EndTime "6:10:24 PDT"]
[Termination "Ollarov ha vinto per abbandono"]

1. e4 {[%clk 0:12:01.3]} 1... d5 {[%clk 0:11:58.5]} 2. exd5 {[%clk 0:12:01.4]}
2... Qxd5 {[%clk 0:12:00.3]} 3. Nc3 {[%clk 0:12:03.4]} 3... Qd6 {[%clk
0:12:01.7]} 4. d4 {[%clk 0:12:05.3]} 4... c6 {[%clk 0:12:03.7]} 5. Nf3 {[%clk
0:12:06.4]} 5... Bg4 {[%clk 0:12:05.2]} 6. Be2 {[%clk 0:12:07.5]} 6... Nf6
{[%clk 0:12:05.7]} 7. h3 {[%clk 0:12:04.3]} 7... Bf5 {[%clk 0:12:05.1]} 8. Be3
{[%clk 0:11:51.3]} 8... Nbd7 {[%clk 0:11:59]} 9. Qd2 {[%clk 0:11:51.9]} 9... Nb6
{[%clk 0:11:59.9]} 10. O-O-O {[%clk 0:11:51.9]} 10... O-O-O {[%clk 0:11:53.9]}
11. g4 {[%clk 0:11:51.2]} 11... Ne4 {[%clk 0:11:37.6]} 12. Nxe4 {[%clk
0:11:49.7]} 12... Bxe4 {[%clk 0:11:39.3]} 13. Rhe1 {[%clk 0:11:50.8]} 13... Nd5
{[%clk 0:11:25.9]} 14. Ng5 {[%clk 0:11:50.5]} 14... Bg6 {[%clk 0:11:07.9]} 15.
Bc4 {[%clk 0:11:45.2]} 15... h6 {[%clk 0:11:05.4]} 16. Nf3 {[%clk 0:11:27]}
16... Nxe3 {[%clk 0:10:58.4]} 17. fxe3 {[%clk 0:11:27.7]} 17... e6 {[%clk
0:10:33.9]} 18. Ne5 {[%clk 0:11:27.7]} 18... Be7 {[%clk 0:10:07.7]} 19. Nxg6
{[%clk 0:11:25.5]} 19... fxg6 {[%clk 0:10:07.7]} 20. Qd3 {[%clk 0:11:10.7]}
20... e5 {[%clk 0:10:01.1]} 21. dxe5 {[%clk 0:10:59.5]} 21... Qxd3 {[%clk
0:10:02]} 22. Rxd3 {[%clk 0:11:00.4]} 22... Rxd3 {[%clk 0:10:01.1]} 23. Bxd3
{[%clk 0:11:02]} 23... g5 {[%clk 0:10:00.9]} 24. Bf5+ {[%clk 0:11:03.5]} 24...
Kc7 {[%clk 0:09:59.5]} 25. Rd1 {[%clk 0:11:05.2]} 25... Rd8 {[%clk 0:10:00.4]}
26. Rxd8 {[%clk 0:11:02]} 26... Kxd8 {[%clk 0:10:01.9]} 27. Kd2 {[%clk
0:11:03.5]} 27... Bc5 {[%clk 0:09:51]} 28. Kd3 {[%clk 0:11:04.8]} 28... Ke7
{[%clk 0:09:52.6]} 29. Ke4 {[%clk 0:11:06.7]} 29... a6 {[%clk 0:09:43.6]} 30. a3
{[%clk 0:11:08.9]} 30... b5 {[%clk 0:09:43.9]} 31. b4 {[%clk 0:11:08.2]} 31...
Bb6 {[%clk 0:09:44.8]} 32. Bc8 {[%clk 0:11:08.4]} 32... a5 {[%clk 0:09:46]} 33.
Bb7 {[%clk 0:11:05.8]} 33... c5 {[%clk 0:09:43.6]} 34. c3 {[%clk 0:11:07.2]}
34... axb4 {[%clk 0:09:44.6]} 35. axb4 {[%clk 0:11:08.7]} 35... cxb4 {[%clk
0:09:46.4]} 36. cxb4 {[%clk 0:11:09.7]} 36... g6 {[%clk 0:09:38.5]} 37. Bc6
{[%clk 0:11:10.8]} 37... Ke6 {[%clk 0:09:34.6]} 38. Bxb5 {[%clk 0:11:12.1]}
38... Bc7 {[%clk 0:09:36.3]} 39. Bc4+ {[%clk 0:11:11.6]} 39... Ke7 {[%clk
0:09:36.7]} 40. Kd5 {[%clk 0:11:10.7]} 40... h5 {[%clk 0:09:35.4]} 41. e6 {[%clk
0:11:10.4]} 41... Bb6 {[%clk 0:09:19.7]} 42. e4 {[%clk 0:11:11.6]} 42... Bd8
{[%clk 0:08:59.4]} 43. Kc6 {[%clk 0:11:13.2]} 43... Kf6 {[%clk 0:08:41.2]} 44.
Kd7 {[%clk 0:11:12.7]} 44... Be7 {[%clk 0:08:43.1]} 45. b5 {[%clk 0:11:13.5]}
45... Bc5 {[%clk 0:08:24.7]} 46. Kc6 {[%clk 0:11:05.1]} 46... Be3 {[%clk
0:08:08.2]} 47. b6 {[%clk 0:11:06.8]} 47... Ke7 {[%clk 0:07:56.7]} 48. b7 {[%clk
0:11:07.5]} 48... Bf4 {[%clk 0:07:58.4]} 49. Kd5 {[%clk 0:11:06]} 49... Bb8
{[%clk 0:07:56.1]} 50. e5 {[%clk 0:11:05]} 50... Bc7 {[%clk 0:07:55.6]} 51. Bb5
{[%clk 0:11:05.6]} 51... Bb8 {[%clk 0:07:56.9]} 52. Bd3 {[%clk 0:11:04.2]} 52...
hxg4 {[%clk 0:07:52.4]} 53. hxg4 {[%clk 0:11:05.6]} 53... Bc7 {[%clk 0:07:47.4]}
54. Bxg6 {[%clk 0:11:06.8]} 54... Bb8 {[%clk 0:07:49.2]} 55. Ke4 {[%clk
0:11:04.5]} 55... Bc7 {[%clk 0:07:51.1]} 56. Kf5 {[%clk 0:11:06.3]} 56... Bb8
{[%clk 0:07:50.2]} 57. Bf7 {[%clk 0:11:08.3]} 57... Bc7 {[%clk 0:07:46.5]} 58.
Kxg5 {[%clk 0:11:10.4]} 58... Bxe5 {[%clk 0:07:48.2]} 59. Kh6 {[%clk 0:11:12.5]}
59... Bf4+ {[%clk 0:07:37.6]} 60. g5 {[%clk 0:11:13.7]} 60... Bb8 {[%clk
0:07:34.1]} 61. Kh5 {[%clk 0:11:15.6]} 61... Kf8 {[%clk 0:07:30.4]} 62. Kg6
{[%clk 0:11:17.3]} 62... Be5 {[%clk 0:07:14.8]} 63. Kh7 {[%clk 0:11:15.6]} 63...
Bb8 {[%clk 0:07:11.2]} 64. g6 {[%clk 0:11:17.7]} 64... Be5 {[%clk 0:06:51.3]}
65. g7+ {[%clk 0:11:18.2]} 1-0

[Event "Sempre più Rapidamente"]
[Site "Chess.com"]
[Date "2020.04.12"]
[Round "1"]
[White "ottovolante"]
[Black "SanSecondoPR"]
[Result "0-1"]
[WhiteElo "998"]
[BlackElo "1440"]
[TimeControl "720+3"]
[EndTime "6:12:17 PDT"]
[Termination "SanSecondoPR ha vinto per abbandono"]

1. e4 {[%clk 0:12:01.6]} 1... e5 {[%clk 0:11:59.4]} 2. Nf3 {[%clk 0:12:02.3]}
2... Nc6 {[%clk 0:11:59.7]} 3. Bc4 {[%clk 0:12:03.4]} 3... Nf6 {[%clk
0:12:00.1]} 4. d3 {[%clk 0:12:02.4]} 4... d6 {[%clk 0:11:59.8]} 5. Ng5 {[%clk
0:12:00.2]} 5... d5 {[%clk 0:11:50.5]} 6. Bxd5 {[%clk 0:11:56.5]} 6... Nxd5
{[%clk 0:11:51.2]} 7. exd5 {[%clk 0:11:58.1]} 7... Ne7 {[%clk 0:11:38.9]} 8. Qf3
{[%clk 0:11:58.1]} 8... Qxd5 {[%clk 0:11:34.5]} 9. Qxd5 {[%clk 0:11:55.7]} 9...
Nxd5 {[%clk 0:11:34.7]} 10. O-O {[%clk 0:11:54.1]} 10... f6 {[%clk 0:11:33.7]}
11. Nf3 {[%clk 0:11:52.5]} 11... Bd6 {[%clk 0:11:26.9]} 12. Nc3 {[%clk
0:11:53.4]} 12... Nb4 {[%clk 0:11:18.6]} 13. Rb1 {[%clk 0:11:30.2]} 13... c6
{[%clk 0:11:14.7]} 14. Ne1 {[%clk 0:11:25.8]} 14... Bf5 {[%clk 0:11:04.2]} 15.
a3 {[%clk 0:11:26.4]} 15... Na6 {[%clk 0:10:42.9]} 16. Ne4 {[%clk 0:10:51.1]}
16... Be7 {[%clk 0:10:33.7]} 17. h3 {[%clk 0:10:44.4]} 17... O-O {[%clk
0:10:33.4]} 18. Bd2 {[%clk 0:10:05.1]} 18... Rad8 {[%clk 0:10:20.2]} 19. Bc3
{[%clk 0:10:02.6]} 19... Nc7 {[%clk 0:10:12.7]} 20. Nf3 {[%clk 0:09:29.3]} 20...
g5 {[%clk 0:10:00.2]} 21. g4 {[%clk 0:09:20.3]} 21... Be6 {[%clk 0:09:46.6]} 22.
Ned2 {[%clk 0:08:43.9]} 22... Nd5 {[%clk 0:09:37.9]} 23. Nh2 {[%clk 0:08:37]}
23... Nf4 {[%clk 0:09:32]} 24. Rbe1 {[%clk 0:07:58]} 24... Nxh3+ {[%clk
0:09:28.1]} 25. Kg2 {[%clk 0:07:55.3]} 25... Nf4+ {[%clk 0:09:23.3]} 26. Kg3
{[%clk 0:07:51]} 26... h5 {[%clk 0:09:00.8]} 27. Ba5 {[%clk 0:07:27.5]} 27... b6
{[%clk 0:08:59]} 28. Bb4 {[%clk 0:07:26.3]} 28... c5 {[%clk 0:08:53.8]} 29. Bc3
{[%clk 0:07:27]} 29... h4+ {[%clk 0:08:50.3]} 30. Kf3 {[%clk 0:07:23.9]} 30...
Bd5+ {[%clk 0:08:47.8]} 31. Ne4 {[%clk 0:07:23.8]} 31... f5 {[%clk 0:08:38]} 32.
gxf5 {[%clk 0:07:23.6]} 32... Rxf5 {[%clk 0:08:35.5]} 33. Rg1 {[%clk 0:07:24.3]}
33... Nxd3+ {[%clk 0:08:25.4]} 34. Ke3 {[%clk 0:07:21.6]} 34... Nxe1 {[%clk
0:08:18.3]} 35. Bxe1 {[%clk 0:07:21.2]} 35... Rf4 {[%clk 0:08:08.8]} 36. f3
{[%clk 0:07:13.8]} 36... c4 {[%clk 0:08:04.3]} 37. Ng4 {[%clk 0:07:03.3]} 37...
Bxe4 {[%clk 0:08:00.8]} 38. fxe4 {[%clk 0:07:02]} 38... Bc5+ {[%clk 0:07:59.9]}
39. Ke2 {[%clk 0:06:58.5]} 39... Bxg1 {[%clk 0:07:58.8]} 40. Nh6+ {[%clk
0:06:59.1]} 40... Kh7 {[%clk 0:07:54.1]} 41. Nf5 {[%clk 0:06:57]} 41... Rxe4+
{[%clk 0:07:51.7]} 42. Kf1 {[%clk 0:06:57.2]} 42... Rd1 {[%clk 0:07:42]} 43.
Kxg1 {[%clk 0:06:49.9]} 43... Rexe1+ {[%clk 0:07:38]} 44. Kg2 {[%clk 0:06:51.6]}
44... Kg6 {[%clk 0:07:35.4]} 45. Ne7+ {[%clk 0:06:48.7]} 45... Kh5 {[%clk
0:07:32.8]} 46. Nc6 {[%clk 0:06:47.8]} 46... g4 {[%clk 0:07:32.5]} 47. Kf2
{[%clk 0:06:45.1]} 47... g3+ {[%clk 0:07:29.8]} 48. Kf3 {[%clk 0:06:46.6]} 48...
e4+ {[%clk 0:07:29.2]} 49. Kf4 {[%clk 0:06:46.8]} 49... g2 {[%clk 0:07:27.7]}
50. Ne5 {[%clk 0:06:47.6]} 50... g1=Q {[%clk 0:07:25.4]} 0-1

[Event "Sempre più Rapidamente"]
[Site "Chess.com"]
[Date "2020.04.12"]
[Round "1"]
[White "lionblu1"]
[Black "GuGe14"]
[Result "0-1"]
[WhiteElo "1318"]
[BlackElo "1835"]
[TimeControl "720+3"]
[EndTime "6:20:40 PDT"]
[Termination "GuGe14 ha vinto per abbandono"]

1. d4 {[%clk 0:11:38.1]} 1... Nf6 {[%clk 0:11:58.6]} 2. c4 {[%clk 0:11:38.7]}
2... g6 {[%clk 0:11:59]} 3. Nc3 {[%clk 0:11:39.1]} 3... Bg7 {[%clk 0:11:59.3]}
4. e4 {[%clk 0:11:40.2]} 4... d6 {[%clk 0:12:00.8]} 5. Be2 {[%clk 0:11:40.3]}
5... O-O {[%clk 0:11:58.9]} 6. Bg5 {[%clk 0:11:40.6]} 6... c5 {[%clk 0:10:45.3]}
7. d5 {[%clk 0:11:40.3]} 7... e6 {[%clk 0:10:26.6]} 8. Qd2 {[%clk 0:11:27.4]}
8... exd5 {[%clk 0:10:18]} 9. exd5 {[%clk 0:11:26.4]} 9... Qb6 {[%clk
0:09:39.9]} 10. Nf3 {[%clk 0:11:13.2]} 10... Bf5 {[%clk 0:09:38.7]} 11. O-O
{[%clk 0:11:04.2]} 11... Ne4 {[%clk 0:08:28.5]} 12. Nxe4 {[%clk 0:10:35.8]}
12... Bxe4 {[%clk 0:08:31.4]} 13. Rae1 {[%clk 0:06:10.2]} 13... Qxb2 {[%clk
0:06:51.9]} 14. Qxb2 {[%clk 0:05:39.3]} 14... Bxb2 {[%clk 0:06:46]} 15. Be7
{[%clk 0:05:26.3]} 15... Re8 {[%clk 0:06:01.2]} 16. Bxd6 {[%clk 0:05:27]} 16...
b6 {[%clk 0:05:11.1]} 17. Ng5 {[%clk 0:05:20.4]} 17... Bf5 {[%clk 0:04:46.5]}
18. g4 {[%clk 0:04:55.6]} 18... Bc2 {[%clk 0:04:01.2]} 19. Bf3 {[%clk 0:04:42]}
19... Nd7 {[%clk 0:03:44.6]} 20. Bd1 {[%clk 0:04:01.1]} 20... Bd3 {[%clk
0:03:35]} 21. Ba4 {[%clk 0:02:51.6]} 21... Bxf1 {[%clk 0:02:48]} 22. Bxd7 {[%clk
0:02:31.8]} 22... Rxe1 {[%clk 0:02:46.6]} 23. Nf3 {[%clk 0:02:20.7]} 23... Rd1
{[%clk 0:02:08.8]} 24. Ba4 {[%clk 0:02:16.9]} 24... Rc1 {[%clk 0:01:43.2]} 25.
Bf4 {[%clk 0:02:17.1]} 25... Rxc4 {[%clk 0:01:29.3]} 26. Bc6 {[%clk 0:02:06.2]}
26... Rxf4 {[%clk 0:01:25.8]} 27. Ne5 {[%clk 0:01:55.5]} 27... Bxe5 {[%clk
0:01:21.9]} 0-1

[Event "Sempre più Rapidamente"]
[Site "Chess.com"]
[Date "2020.04.12"]
[Round "1"]
[White "Carbon"]
[Black "sergiodone"]
[Result "1-0"]
[WhiteElo "1784"]
[BlackElo "1211"]
[TimeControl "720+3"]
[EndTime "6:25:43 PDT"]
[Termination "Carbon ha vinto per tempo"]

1. e4 {[%clk 0:12:00]} 1... c5 {[%clk 0:12:00.6]} 2. Nf3 {[%clk 0:12:00.4]} 2...
d6 {[%clk 0:12:01.9]} 3. c3 {[%clk 0:12:01.6]} 3... e6 {[%clk 0:12:02.4]} 4. d4
{[%clk 0:12:01.2]} 4... cxd4 {[%clk 0:12:03.6]} 5. cxd4 {[%clk 0:12:03.2]} 5...
Be7 {[%clk 0:12:05]} 6. Nc3 {[%clk 0:12:03.5]} 6... a6 {[%clk 0:12:05.9]} 7. Be2
{[%clk 0:11:59.7]} 7... Nd7 {[%clk 0:12:06.5]} 8. O-O {[%clk 0:12:00.6]} 8... b5
{[%clk 0:12:08.4]} 9. Bd3 {[%clk 0:11:59.1]} 9... Bb7 {[%clk 0:12:10.1]} 10. Ne2
{[%clk 0:11:46.7]} 10... Ngf6 {[%clk 0:12:10.7]} 11. Ng3 {[%clk 0:11:48.2]}
11... h5 {[%clk 0:12:09.3]} 12. Bg5 {[%clk 0:11:39.6]} 12... Qb6 {[%clk
0:12:02.1]} 13. Rc1 {[%clk 0:11:24.9]} 13... h4 {[%clk 0:11:25.7]} 14. Bxh4
{[%clk 0:11:13.6]} 14... Ng4 {[%clk 0:09:51.1]} 15. Bxe7 {[%clk 0:10:59.2]}
15... Kxe7 {[%clk 0:09:52.2]} 16. h3 {[%clk 0:10:50]} 16... Ngf6 {[%clk
0:09:44]} 17. Qd2 {[%clk 0:10:43]} 17... e5 {[%clk 0:09:40.2]} 18. Nf5+ {[%clk
0:10:38]} 18... Kf8 {[%clk 0:09:37.3]} 19. Qg5 {[%clk 0:10:31.3]} 19... g6
{[%clk 0:09:28.6]} 20. dxe5 {[%clk 0:09:35.5]} 20... dxe5 {[%clk 0:09:16.4]} 21.
Ng3 {[%clk 0:09:16.9]} 21... Qd6 {[%clk 0:09:00.5]} 22. Rfd1 {[%clk 0:09:11.1]}
22... Qe7 {[%clk 0:08:56.7]} 23. Rc7 {[%clk 0:09:01]} 23... Rb8 {[%clk
0:08:43.7]} 24. Bc2 {[%clk 0:08:35.5]} 24... Qd8 {[%clk 0:07:26]} 25. Rdxd7
{[%clk 0:07:45.6]} 25... Nxd7 {[%clk 0:07:21.9]} 26. Qxd8+ {[%clk 0:07:45.6]}
26... Rxd8 {[%clk 0:07:22.6]} 27. Rxb7 {[%clk 0:07:47.1]} 27... f6 {[%clk
0:06:55.5]} 28. Bb3 {[%clk 0:07:44]} 28... Nc5 {[%clk 0:06:54.6]} 29. Rf7+
{[%clk 0:07:27.4]} 29... Ke8 {[%clk 0:06:54.3]} 30. Rxf6 {[%clk 0:07:27.2]}
30... Nxb3 {[%clk 0:06:55.9]} 31. axb3 {[%clk 0:07:27.7]} 31... Rg8 {[%clk
0:06:18.4]} 32. Nxe5 {[%clk 0:07:20.4]} 32... Rd1+ {[%clk 0:06:10.4]} 33. Kh2
{[%clk 0:07:15.3]} 33... Rd2 {[%clk 0:06:12.1]} 34. Rxa6 {[%clk 0:06:41.4]}
34... Ke7 {[%clk 0:05:36.1]} 35. Nxg6+ {[%clk 0:06:26.6]} 35... Kd7 {[%clk
0:05:11.9]} 36. Ne5+ {[%clk 0:05:52.8]} 36... Kc7 {[%clk 0:05:12]} 37. Rc6+
{[%clk 0:05:18.2]} 37... Kb7 {[%clk 0:05:12.6]} 38. Rc3 {[%clk 0:04:52.9]} 38...
Rxf2 {[%clk 0:05:05.5]} 39. Nd3 {[%clk 0:04:35.8]} 39... Rd2 {[%clk 0:04:47.1]}
40. Nc5+ {[%clk 0:04:30.2]} 40... Kb6 {[%clk 0:04:34.5]} 41. Ne6 {[%clk
0:04:12.7]} 41... Rxb2 {[%clk 0:04:28.7]} 42. h4 {[%clk 0:04:09.9]} 42... Rg6
{[%clk 0:04:11.5]} 43. Nf4 {[%clk 0:04:03.3]} 43... Rg4 {[%clk 0:03:53]} 44.
Nd5+ {[%clk 0:04:04.4]} 44... Kb7 {[%clk 0:02:07]} 45. Kh3 {[%clk 0:04:00]}
45... Rg7 {[%clk 0:02:01.5]} 46. h5 {[%clk 0:03:55.2]} 46... Rf2 {[%clk
0:01:16.6]} 47. Rf3 {[%clk 0:03:43.3]} 47... Rd2 {[%clk 0:01:00.5]} 48. h6
{[%clk 0:03:15.9]} 48... Rh7 {[%clk 0:00:56.5]} 49. Rf6 {[%clk 0:03:09.2]} 49...
Rd3 {[%clk 0:00:42.7]} 50. Rg6 {[%clk 0:02:43.1]} 50... Kb8 {[%clk 0:00:27.2]}
51. Nf6 {[%clk 0:02:30.6]} 51... Rf7 {[%clk 0:00:17.4]} 52. Rg8+ {[%clk
0:02:26.9]} 52... Kb7 {[%clk 0:00:13.4]} 53. Rg7 {[%clk 0:02:28.3]} 53... Rxg7
{[%clk 0:00:05.7]} 54. hxg7 {[%clk 0:02:26.2]} 54... Rd8 {[%clk 0:00:06.3]} 55.
g8=Q {[%clk 0:02:27.1]} 55... Rxg8 {[%clk 0:00:07.7]} 56. Nxg8 {[%clk
0:02:28.6]} 56... Kc7 {[%clk 0:00:09.4]} 57. Nf6 {[%clk 0:02:27.1]} 57... Kd6
{[%clk 0:00:10.7]} 58. Nd5 {[%clk 0:02:23.8]} 58... Kc5 {[%clk 0:00:06.4]} 59.
b4+ {[%clk 0:02:22.8]} 59... Kd6 {[%clk 0:00:06.1]} 60. Kg4 {[%clk 0:02:21.7]}
60... Ke5 {[%clk 0:00:07.5]} 61. Kf3 {[%clk 0:02:21.9]} 61... Ke6 {[%clk
0:00:05.1]} 62. Ne2 {[%clk 0:02:21.8]} 62... Ke5 {[%clk 0:00:06.3]} 63. g4
{[%clk 0:02:22.7]} 63... Ke6 {[%clk 0:00:06.1]} 64. Nd4+ {[%clk 0:02:21.3]}
64... Ke5 {[%clk 0:00:04.7]} 65. Nxb5 {[%clk 0:02:17.3]} 65... Ke6 {[%clk
0:00:03.7]} 66. Kf4 {[%clk 0:02:16.1]} 1-0

[Event "Sempre più Rapidamente"]
[Site "Chess.com"]
[Date "2020.04.12"]
[Round "2"]
[White "ferrariand"]
[Black "SanSecondoPR"]
[Result "1-0"]
[WhiteElo "1601"]
[BlackElo "1383"]
[TimeControl "720+3"]
[EndTime "6:35:34 PDT"]
[Termination "ferrariand ha vinto per abbandono"]

1. e4 {[%clk 0:12:02.9]} 1... e5 {[%clk 0:12:00.3]} 2. Nf3 {[%clk 0:11:57.7]}
2... Nc6 {[%clk 0:11:59.8]} 3. Bb5 {[%clk 0:11:58.4]} 3... Nge7 {[%clk
0:11:57.6]} 4. O-O {[%clk 0:11:52]} 4... g6 {[%clk 0:11:55.9]} 5. c3 {[%clk
0:11:39.7]} 5... Bg7 {[%clk 0:11:55.3]} 6. d4 {[%clk 0:11:32.8]} 6... O-O {[%clk
0:11:54.7]} 7. Re1 {[%clk 0:11:14.3]} 7... d6 {[%clk 0:11:53.8]} 8. d5 {[%clk
0:10:48.8]} 8... Nb8 {[%clk 0:11:49.6]} 9. Bg5 {[%clk 0:10:41.2]} 9... f6 {[%clk
0:11:47.5]} 10. Be3 {[%clk 0:10:33.7]} 10... a6 {[%clk 0:11:47.7]} 11. Bc4
{[%clk 0:10:31.2]} 11... b5 {[%clk 0:11:47.3]} 12. Bb3 {[%clk 0:10:31.6]} 12...
Bg4 {[%clk 0:11:42.3]} 13. h3 {[%clk 0:10:29.7]} 13... Bd7 {[%clk 0:11:38.7]}
14. a4 {[%clk 0:10:26.3]} 14... c6 {[%clk 0:11:33.8]} 15. dxc6+ {[%clk
0:10:11.3]} 15... Kh8 {[%clk 0:11:21.4]} 16. cxd7 {[%clk 0:10:13.1]} 16... Nxd7
{[%clk 0:11:18.8]} 17. Qxd6 {[%clk 0:10:09.8]} 17... Nc8 {[%clk 0:11:08.3]} 18.
Qd2 {[%clk 0:09:43.1]} 18... Qc7 {[%clk 0:11:02.8]} 19. Rd1 {[%clk 0:09:31]}
19... Nc5 {[%clk 0:10:58.2]} 20. Bxc5 {[%clk 0:09:24.9]} 20... Qxc5 {[%clk
0:10:52.1]} 21. Qd5 {[%clk 0:09:24.4]} 21... Qb6 {[%clk 0:10:42.2]} 22. Qxa8
{[%clk 0:09:16]} 22... Nd6 {[%clk 0:10:32.3]} 23. Qd5 {[%clk 0:09:13]} 23... Nb7
{[%clk 0:10:03.4]} 24. Qe6 {[%clk 0:08:40.7]} 24... Qc7 {[%clk 0:09:41.4]} 25.
Rd7 {[%clk 0:08:34.1]} 25... Qb8 {[%clk 0:09:27.3]} 26. Qe7 {[%clk 0:08:32.1]}
26... Rg8 {[%clk 0:09:24.8]} 27. Rxb7 {[%clk 0:08:31.6]} 27... Qc8 {[%clk
0:09:14]} 28. Bxg8 {[%clk 0:08:31.8]} 28... Qxg8 {[%clk 0:09:12.8]} 29. Qxg7+
{[%clk 0:08:28.5]} 1-0

[Event "Sempre più Rapidamente"]
[Site "Chess.com"]
[Date "2020.04.12"]
[Round "2"]
[White "sirmale49"]
[Black "sergiodone"]
[Result "1-0"]
[WhiteElo "1421"]
[BlackElo "1191"]
[TimeControl "720+3"]
[EndTime "6:41:59 PDT"]
[Termination "sirmale49 ha vinto per abbandono"]

1. f4 {[%clk 0:12:02.9]} 1... e5 {[%clk 0:11:53]} 2. d3 {[%clk 0:12:02.7]} 2...
Nc6 {[%clk 0:11:50.8]} 3. Nf3 {[%clk 0:12:02.6]} 3... exf4 {[%clk 0:11:52.6]} 4.
Bxf4 {[%clk 0:12:02.5]} 4... d6 {[%clk 0:11:54.3]} 5. g3 {[%clk 0:12:03.5]} 5...
g6 {[%clk 0:11:36.1]} 6. e3 {[%clk 0:12:05.3]} 6... Bg7 {[%clk 0:11:35.9]} 7. c3
{[%clk 0:12:07.1]} 7... Nge7 {[%clk 0:11:32.7]} 8. Bg2 {[%clk 0:12:02.6]} 8...
Bg4 {[%clk 0:11:32.8]} 9. O-O {[%clk 0:12:01.2]} 9... O-O {[%clk 0:11:25.9]} 10.
h3 {[%clk 0:11:57.6]} 10... Bd7 {[%clk 0:11:22.9]} 11. e4 {[%clk 0:11:36]} 11...
Ne5 {[%clk 0:10:59.3]} 12. Na3 {[%clk 0:11:23]} 12... c6 {[%clk 0:10:58.8]} 13.
Nc2 {[%clk 0:11:19.9]} 13... Qb6+ {[%clk 0:10:58.5]} 14. Kh1 {[%clk 0:10:49.8]}
14... Nxf3 {[%clk 0:10:59.7]} 15. Bxf3 {[%clk 0:10:47.1]} 15... Bxh3 {[%clk
0:10:54.9]} 16. Rg1 {[%clk 0:10:36.4]} 16... Bd7 {[%clk 0:10:23.8]} 17. Bxd6
{[%clk 0:10:27.2]} 17... Rfe8 {[%clk 0:10:21.2]} 18. d4 {[%clk 0:10:20.2]} 18...
Nc8 {[%clk 0:10:09]} 19. Ba3 {[%clk 0:10:17.3]} 19... Be6 {[%clk 0:10:00.6]} 20.
Nb4 {[%clk 0:09:34.8]} 20... a5 {[%clk 0:09:55.4]} 21. Nd3 {[%clk 0:09:29.7]}
21... Qd8 {[%clk 0:09:55.4]} 22. Nf4 {[%clk 0:09:26.5]} 22... Bd7 {[%clk
0:09:40.8]} 23. d5 {[%clk 0:09:19.9]} 23... Qg5 {[%clk 0:09:40.1]} 24. Bc5
{[%clk 0:08:26.6]} 24... Be5 {[%clk 0:09:19.7]} 25. Qd2 {[%clk 0:08:03.6]} 25...
Ne7 {[%clk 0:08:41.8]} 26. Be3 {[%clk 0:08:01.5]} 26... Bxf4 {[%clk 0:08:35.4]}
27. Bxf4 {[%clk 0:07:56.8]} 27... Qf6 {[%clk 0:08:31.8]} 28. e5 {[%clk
0:07:56.5]} 28... Qe6 {[%clk 0:08:19.3]} 29. dxe6 {[%clk 0:07:56.6]} 29... Bxe6
{[%clk 0:08:13.1]} 30. Bh6 {[%clk 0:07:42.5]} 30... Nf5 {[%clk 0:08:05.1]} 31.
Bf4 {[%clk 0:07:22.9]} 31... Red8 {[%clk 0:08:06.5]} 32. Qf2 {[%clk 0:07:15.6]}
32... Rd7 {[%clk 0:07:57.4]} 33. Rad1 {[%clk 0:07:14.9]} 33... Bd5 {[%clk
0:07:47.8]} 34. Bxd5 {[%clk 0:07:11.8]} 34... cxd5 {[%clk 0:07:43.9]} 35. g4
{[%clk 0:07:06]} 35... Ng7 {[%clk 0:07:42]} 36. Bh6 {[%clk 0:06:58.6]} 36... Ne6
{[%clk 0:07:42.1]} 37. Rgf1 {[%clk 0:06:28.6]} 37... b5 {[%clk 0:07:35.9]} 38.
Rd2 {[%clk 0:06:03.7]} 38... b4 {[%clk 0:07:31.5]} 39. c4 {[%clk 0:05:58.5]}
39... Rad8 {[%clk 0:07:25.8]} 40. cxd5 {[%clk 0:05:43.2]} 40... Nc5 {[%clk
0:06:58.5]} 41. Qxc5 {[%clk 0:05:34.5]} 1-0